[Event "Early-Titled-Tuesday-Blitz-May-07-2024"]
[Site "Chess.com"]
[Date "2024.05.07"]
[Round "4"]
[White "Aleksandar-Topalov"]
[Black "banane_verte"]
[Result "0-1"]
[WhiteElo "2396"]
[BlackElo "2592"]
[TimeControl "180+1"]
[EndTime "8:43:42 PDT"]
[Termination "banane_verte won by resignation"]

1. b3 {[%clk 0:03:00.9]} 1... e5 {[%clk 0:02:57.4]} 2. Bb2 {[%clk 0:02:59.7]}
2... Nc6 {[%clk 0:02:24.7]} 3. e3 {[%clk 0:02:59.2]} 3... g6 {[%clk 0:02:24.1]}
4. c4 {[%clk 0:02:55.9]} 4... Bg7 {[%clk 0:02:23.9]} 5. Nf3 {[%clk 0:02:55.3]}
5... Nge7 {[%clk 0:02:23.7]} 6. d3 {[%clk 0:02:55]} 6... d5 {[%clk 0:02:22.8]}
7. cxd5 {[%clk 0:02:54.3]} 7... Nxd5 {[%clk 0:02:23.7]} 8. a3 {[%clk 0:02:53.4]}
8... Nde7 {[%clk 0:02:10.8]} 9. Qc2 {[%clk 0:02:52.3]} 9... Bf5 {[%clk
0:02:10.6]} 10. Nbd2 {[%clk 0:02:48.9]} 10... Qd7 {[%clk 0:02:10.8]} 11. Be2
{[%clk 0:02:42.1]} 11... Rd8 {[%clk 0:02:10.2]} 12. Ne4 {[%clk 0:02:41.9]} 12...
b6 {[%clk 0:02:01.8]} 13. O-O {[%clk 0:02:34]} 13... h6 {[%clk 0:02:01.9]} 14.
Rac1 {[%clk 0:02:33.7]} 14... O-O {[%clk 0:02:00.8]} 15. b4 {[%clk 0:02:30.1]}
15... a6 {[%clk 0:01:59.2]} 16. Rfd1 {[%clk 0:02:25.7]} 16... Kh7 {[%clk
0:01:57.9]} 17. h3 {[%clk 0:02:24.6]} 17... Be6 {[%clk 0:01:57.9]} 18. d4 {[%clk
0:02:17.5]} 18... exd4 {[%clk 0:01:54.3]} 19. Nxd4 {[%clk 0:02:17.6]} 19... Nxd4
{[%clk 0:01:47.4]} 20. Bxd4 {[%clk 0:02:17.6]} 20... Bxd4 {[%clk 0:01:44.8]} 21.
Rxd4 {[%clk 0:02:16.7]} 21... Qc8 {[%clk 0:01:44.5]} 22. Qxc7 {[%clk 0:02:11.3]}
22... Qxc7 {[%clk 0:01:42.5]} 23. Rxc7 {[%clk 0:02:11]} 23... Rxd4 {[%clk
0:01:43.4]} 24. exd4 {[%clk 0:02:10.7]} 24... Nd5 {[%clk 0:01:38.1]} 25. Rc1
{[%clk 0:01:53.1]} 25... a5 {[%clk 0:01:36.7]} 26. bxa5 {[%clk 0:01:42.6]} 26...
bxa5 {[%clk 0:01:37.6]} 27. Rc5 {[%clk 0:01:41.6]} 27... Rd8 {[%clk 0:01:32.8]}
28. Bc4 {[%clk 0:01:36.7]} 28... Kg7 {[%clk 0:01:27.4]} 29. Rxa5 {[%clk
0:01:33.4]} 29... Nf4 {[%clk 0:01:24.3]} 30. Bxe6 {[%clk 0:01:30.3]} 30... fxe6
{[%clk 0:01:22.5]} 31. Ra7+ {[%clk 0:01:27.5]} 31... Kf8 {[%clk 0:01:20.3]} 32.
Nc5 {[%clk 0:01:22.4]} 32... Ne2+ {[%clk 0:01:01.3]} 33. Kh2 {[%clk 0:01:14.5]}
33... Nxd4 {[%clk 0:01:02.2]} 34. Nd7+ {[%clk 0:01:09.8]} 34... Ke7 {[%clk
0:00:57]} 35. Ne5+ {[%clk 0:01:06.2]} 35... Kf6 {[%clk 0:00:56.6]} 36. f4 {[%clk
0:01:05]} 36... Kf5 {[%clk 0:00:56.9]} 37. Rf7+ {[%clk 0:01:02.8]} 37... Ke4
{[%clk 0:00:57.2]} 38. Nxg6 {[%clk 0:01:02.8]} 38... Ra8 {[%clk 0:00:46.9]} 39.
Ne5 {[%clk 0:00:44.3]} 39... Rxa3 {[%clk 0:00:44.1]} 40. h4 {[%clk 0:00:39.8]}
40... h5 {[%clk 0:00:42.7]} 41. Nc4 {[%clk 0:00:31.4]} 41... Rc3 {[%clk
0:00:39.7]} 42. Nd6+ {[%clk 0:00:31.1]} 42... Kd5 {[%clk 0:00:38.1]} 43. Ne8
{[%clk 0:00:30.5]} 43... Nf5 {[%clk 0:00:31.8]} 44. Nf6+ {[%clk 0:00:27.8]}
44... Kd4 {[%clk 0:00:32.3]} 45. Nxh5 {[%clk 0:00:20.2]} 45... Nxh4 {[%clk
0:00:32.4]} 46. Re7 {[%clk 0:00:15.4]} 46... Re3 {[%clk 0:00:24.1]} 47. Ng7
{[%clk 0:00:11.9]} 47... Kd5 {[%clk 0:00:22.2]} 48. Rxe6 {[%clk 0:00:09.4]}
48... Ra3 {[%clk 0:00:15.6]} 49. Rh6 {[%clk 0:00:07.4]} 49... Ra7 {[%clk
0:00:10.9]} 50. Rxh4 {[%clk 0:00:06.7]} 50... Rxg7 {[%clk 0:00:11.6]} 51. Kh3
{[%clk 0:00:06.1]} 51... Ke4 {[%clk 0:00:11.9]} 52. Rg4 {[%clk 0:00:04.4]} 52...
Rh7+ {[%clk 0:00:12.1]} 53. Kg3 {[%clk 0:00:04.8]} 53... Ra7 {[%clk 0:00:12]}
54. Rg5 {[%clk 0:00:03.9]} 54... Ra2 {[%clk 0:00:11.8]} 55. Re5+ {[%clk
0:00:02.7]} 55... Kd4 {[%clk 0:00:12.5]} 56. Kf3 {[%clk 0:00:02.1]} 56... Ra3+
{[%clk 0:00:12.8]} 57. Kg4 {[%clk 0:00:02.5]} 57... Ra8 {[%clk 0:00:12.6]} 58.
g3 {[%clk 0:00:02.3]} 58... Rg8+ {[%clk 0:00:13.4]} 59. Kf3 {[%clk 0:00:00.9]}
59... Rh8 {[%clk 0:00:14.3]} 60. g4 {[%clk 0:00:01.1]} 60... Rh2 {[%clk
0:00:14.9]} 61. Kg3 {[%clk 0:00:00.3]} 61... Rh1 {[%clk 0:00:15.8]} 62. g5
{[%clk 0:00:00.6]} 62... Rg1+ {[%clk 0:00:16.7]} 63. Kh4 {[%clk 0:00:01.2]}
63... Rf1 {[%clk 0:00:17.6]} 64. Kg4 {[%clk 0:00:02]} 64... Rg1+ {[%clk
0:00:18]} 65. Kf5 {[%clk 0:00:02.9]} 65... Rf1 {[%clk 0:00:18.7]} 66. Re6 {[%clk
0:00:03.3]} 66... Kd5 {[%clk 0:00:18.6]} 67. Rf6 {[%clk 0:00:04.2]} 67... Rf2
{[%clk 0:00:18.3]} 68. Rf8 {[%clk 0:00:04.8]} 68... Kd6 {[%clk 0:00:18.2]} 69.
Rd8+ {[%clk 0:00:05.7]} 69... Ke7 {[%clk 0:00:18.7]} 70. Rd2 {[%clk 0:00:06]}
70... Rxd2 {[%clk 0:00:17.7]} 0-1

[Event "Early-Titled-Tuesday-Blitz-May-07-2024"]
[Site "Chess.com"]
[Date "2024.05.07"]
[Round "4"]
[White "MaiqMaster"]
[Black "lluiss"]
[Result "1/2-1/2"]
[WhiteElo "2479"]
[BlackElo "2233"]
[TimeControl "180+1"]
[EndTime "8:43:44 PDT"]
[Termination "Game drawn by repetition"]

1. Nf3 {[%clk 0:03:00.9]} 1... Nf6 {[%clk 0:02:59.2]} 2. c4 {[%clk 0:03:00.3]}
2... g6 {[%clk 0:02:58.8]} 3. Nc3 {[%clk 0:02:57.1]} 3... d5 {[%clk 0:02:57.6]}
4. cxd5 {[%clk 0:02:55]} 4... Nxd5 {[%clk 0:02:58.5]} 5. d4 {[%clk 0:02:52.4]}
5... Bg7 {[%clk 0:02:57.5]} 6. e4 {[%clk 0:02:52.2]} 6... Nxc3 {[%clk
0:02:57.1]} 7. bxc3 {[%clk 0:02:53.1]} 7... c5 {[%clk 0:02:57.3]} 8. Be3 {[%clk
0:02:45.3]} 8... Qa5 {[%clk 0:02:55.9]} 9. Qd2 {[%clk 0:02:43.1]} 9... O-O
{[%clk 0:02:55.2]} 10. Rc1 {[%clk 0:02:37.6]} 10... cxd4 {[%clk 0:02:54.2]} 11.
cxd4 {[%clk 0:02:35.7]} 11... Qxd2+ {[%clk 0:02:53.8]} 12. Nxd2 {[%clk
0:02:33.5]} 12... e6 {[%clk 0:02:48.7]} 13. Be2 {[%clk 0:02:31.4]} 13... Nc6
{[%clk 0:02:48]} 14. Nb3 {[%clk 0:02:30.3]} 14... Rd8 {[%clk 0:02:36]} 15. Rd1
{[%clk 0:02:28.9]} 15... Nb4 {[%clk 0:02:31.4]} 16. Rd2 {[%clk 0:02:19.3]} 16...
b6 {[%clk 0:02:05]} 17. O-O {[%clk 0:02:18]} 17... Ba6 {[%clk 0:02:04.4]} 18.
Bxa6 {[%clk 0:02:12.6]} 18... Nxa6 {[%clk 0:02:05.3]} 19. Rc1 {[%clk 0:02:10]}
19... Rd7 {[%clk 0:01:45.8]} 20. a3 {[%clk 0:02:05.9]} 20... h6 {[%clk
0:01:29.1]} 21. f3 {[%clk 0:02:04]} 21... Rad8 {[%clk 0:01:28.4]} 22. Kf2 {[%clk
0:02:02.9]} 22... Nc7 {[%clk 0:01:21.4]} 23. a4 {[%clk 0:02:00.1]} 23... Na6
{[%clk 0:01:16.4]} 24. Rc4 {[%clk 0:01:59]} 24... f5 {[%clk 0:00:51.7]} 25. Rdc2
{[%clk 0:01:48.8]} 25... fxe4 {[%clk 0:00:48.9]} 26. fxe4 {[%clk 0:01:49.7]}
26... Kf7 {[%clk 0:00:48]} 27. a5 {[%clk 0:01:42.4]} 27... bxa5 {[%clk
0:00:42.4]} 28. e5 {[%clk 0:01:21.5]} 28... Nb4 {[%clk 0:00:41.4]} 29. R2c3
{[%clk 0:01:20.4]} 29... Nd5 {[%clk 0:00:35.6]} 30. Rc1 {[%clk 0:01:19.9]} 30...
Rb7 {[%clk 0:00:27]} 31. Nxa5 {[%clk 0:01:19.6]} 31... Rb2+ {[%clk 0:00:26.7]}
32. R1c2 {[%clk 0:01:19.1]} 32... Rxc2+ {[%clk 0:00:21.2]} 33. Rxc2 {[%clk
0:01:20]} 33... Rb8 {[%clk 0:00:15.8]} 34. Nc6 {[%clk 0:01:18]} 34... Rb7 {[%clk
0:00:15.9]} 35. Ra2 {[%clk 0:01:15.8]} 35... Bf8 {[%clk 0:00:11.5]} 36. Rxa7
{[%clk 0:01:14.1]} 36... Rxa7 {[%clk 0:00:11.5]} 37. Nxa7 {[%clk 0:01:15]} 37...
h5 {[%clk 0:00:06]} 38. Nb5 {[%clk 0:01:13.3]} 38... Bb4 {[%clk 0:00:05]} 39.
Ke2 {[%clk 0:01:10.5]} 39... Ke8 {[%clk 0:00:04.6]} 40. Kd3 {[%clk 0:01:10]}
40... Kd7 {[%clk 0:00:04.4]} 41. g3 {[%clk 0:01:09.9]} 41... Bf8 {[%clk
0:00:03.3]} 42. Nc3 {[%clk 0:01:07.5]} 42... Nxc3 {[%clk 0:00:02.6]} 43. Kxc3
{[%clk 0:01:08.4]} 43... Kc6 {[%clk 0:00:02.9]} 44. Kc4 {[%clk 0:01:08.7]} 44...
Be7 {[%clk 0:00:03.1]} 45. h3 {[%clk 0:01:07.5]} 45... Bd8 {[%clk 0:00:03.2]}
46. g4 {[%clk 0:01:07.8]} 46... hxg4 {[%clk 0:00:02.7]} 47. hxg4 {[%clk
0:01:08.7]} 47... Be7 {[%clk 0:00:03]} 48. Bh6 {[%clk 0:01:08.5]} 48... Bd8
{[%clk 0:00:03.1]} 49. Bg7 {[%clk 0:01:09.1]} 49... Bg5 {[%clk 0:00:02.8]} 50.
Bf6 {[%clk 0:01:09.3]} 50... Bd2 {[%clk 0:00:02.9]} 51. Be7 {[%clk 0:01:09.4]}
51... Be1 {[%clk 0:00:02.8]} 52. Bc5 {[%clk 0:01:09.3]} 52... Bd2 {[%clk
0:00:03.1]} 53. Kd3 {[%clk 0:01:09]} 53... Bh6 {[%clk 0:00:02.9]} 54. Ke4 {[%clk
0:01:09.6]} 54... Bd2 {[%clk 0:00:02.3]} 55. Be7 {[%clk 0:01:09.2]} 55... Bc1
{[%clk 0:00:02]} 56. Bh4 {[%clk 0:01:08.6]} 56... Bd2 {[%clk 0:00:02.1]} 57. Bg3
{[%clk 0:01:08.7]} 57... Bh6 {[%clk 0:00:02.1]} 58. Bf4 {[%clk 0:01:08.6]} 58...
Bf8 {[%clk 0:00:02.3]} 59. Bg5 {[%clk 0:01:08]} 59... Bg7 {[%clk 0:00:02.3]} 60.
Kf4 {[%clk 0:01:07.1]} 60... Kd5 {[%clk 0:00:01.5]} 61. Bf6 {[%clk 0:01:05.3]}
61... Bh6+ {[%clk 0:00:01.7]} 62. Bg5 {[%clk 0:01:03.5]} 62... Bf8 {[%clk
0:00:01.1]} 63. Ke3 {[%clk 0:01:03.3]} 63... Bg7 {[%clk 0:00:01.1]} 64. Bf6
{[%clk 0:01:03.2]} 64... Bh6+ {[%clk 0:00:01.4]} 65. Kd3 {[%clk 0:01:03.1]}
65... Bf8 {[%clk 0:00:01.3]} 66. Bh4 {[%clk 0:01:03]} 66... Bg7 {[%clk
0:00:01.2]} 67. Be1 {[%clk 0:01:02.6]} 67... Bh6 {[%clk 0:00:01.4]} 68. Bb4
{[%clk 0:01:02.1]} 68... Bf4 {[%clk 0:00:01.4]} 69. Be7 {[%clk 0:01:00.8]} 69...
Bg3 {[%clk 0:00:01.4]} 70. Bc5 {[%clk 0:00:59.3]} 70... Bf2 {[%clk 0:00:01.7]}
71. Bb6 {[%clk 0:00:57.5]} 71... Bg1 {[%clk 0:00:01.9]} 72. Ba7 {[%clk
0:00:55.8]} 72... Bf2 {[%clk 0:00:02.5]} 73. Kc3 {[%clk 0:00:55.4]} 73... Bg1
{[%clk 0:00:03]} 74. Bc5 {[%clk 0:00:55.6]} 74... Bf2 {[%clk 0:00:03.5]} 75. Kd3
{[%clk 0:00:55.4]} 75... Bg1 {[%clk 0:00:04.2]} 76. Ba7 {[%clk 0:00:50.8]} 76...
Bf2 {[%clk 0:00:04.4]} 77. Bb6 {[%clk 0:00:46.7]} 77... Bg1 {[%clk 0:00:04.9]}
78. Bc5 {[%clk 0:00:47]} 78... Bf2 {[%clk 0:00:05.4]} 79. Ba7 {[%clk 0:00:46.2]}
79... Bg1 {[%clk 0:00:06]} 80. Kc3 {[%clk 0:00:45.5]} 80... Bf2 {[%clk
0:00:06.2]} 81. Bb6 {[%clk 0:00:43.9]} 81... Bg1 {[%clk 0:00:06.7]} 82. Kd3
{[%clk 0:00:41.9]} 82... Bf2 {[%clk 0:00:07.2]} 83. Bc5 {[%clk 0:00:40.7]} 83...
Bg1 {[%clk 0:00:07.6]} 84. Ba7 {[%clk 0:00:40.4]} 1/2-1/2

[Event "Early-Titled-Tuesday-Blitz-May-07-2024"]
[Site "Chess.com"]
[Date "2024.05.07"]
[Round "4"]
[White "Cheer_Down"]
[Black "twofoxniel"]
[Result "1/2-1/2"]
[WhiteElo "2481"]
[BlackElo "2673"]
[TimeControl "180+1"]
[EndTime "8:43:46 PDT"]
[Termination "Game drawn by repetition"]

1. e4 {[%clk 0:02:59.6]} 1... d5 {[%clk 0:02:55.7]} 2. exd5 {[%clk 0:02:59]}
2... Nf6 {[%clk 0:02:54.7]} 3. c4 {[%clk 0:02:56.8]} 3... c6 {[%clk 0:02:52.5]}
4. d4 {[%clk 0:02:56.9]} 4... cxd5 {[%clk 0:02:52.4]} 5. Nc3 {[%clk 0:02:57.4]}
5... Nc6 {[%clk 0:02:53.1]} 6. Bg5 {[%clk 0:02:56.5]} 6... e6 {[%clk 0:02:50.5]}
7. c5 {[%clk 0:02:52.2]} 7... Be7 {[%clk 0:02:44.9]} 8. Bb5 {[%clk 0:02:49.2]}
8... O-O {[%clk 0:02:45]} 9. Bxc6 {[%clk 0:02:47]} 9... bxc6 {[%clk 0:02:45.9]}
10. Nge2 {[%clk 0:02:45.4]} 10... e5 {[%clk 0:02:33.9]} 11. O-O {[%clk
0:02:36.5]} 11... h6 {[%clk 0:02:17.8]} 12. Bh4 {[%clk 0:02:29.2]} 12... exd4
{[%clk 0:01:58.4]} 13. Nxd4 {[%clk 0:02:29.1]} 13... Bd7 {[%clk 0:01:59]} 14. b4
{[%clk 0:02:27.3]} 14... Re8 {[%clk 0:01:48.9]} 15. Qf3 {[%clk 0:02:14.5]} 15...
Ne4 {[%clk 0:01:29.5]} 16. Bxe7 {[%clk 0:02:08.3]} 16... Rxe7 {[%clk 0:01:28.7]}
17. Nxe4 {[%clk 0:01:59.3]} 17... Rxe4 {[%clk 0:01:29.6]} 18. Rad1 {[%clk
0:01:54.6]} 18... Bg4 {[%clk 0:01:25]} 19. Qg3 {[%clk 0:01:48.9]} 19... Bxd1
{[%clk 0:01:25]} 20. Rxd1 {[%clk 0:01:49.8]} 20... Qd7 {[%clk 0:01:23.3]} 21. b5
{[%clk 0:01:47.3]} 21... cxb5 {[%clk 0:01:16.2]} 22. c6 {[%clk 0:01:47.7]} 22...
Rxd4 {[%clk 0:01:12.8]} 23. Rxd4 {[%clk 0:01:44.7]} 23... Qxc6 {[%clk
0:01:13.1]} 24. h3 {[%clk 0:01:44]} 24... Re8 {[%clk 0:01:09.7]} 25. Qb3 {[%clk
0:01:35.5]} 25... Re5 {[%clk 0:00:55.8]} 26. g3 {[%clk 0:01:35]} 26... a6 {[%clk
0:00:55.5]} 27. a4 {[%clk 0:01:32.8]} 27... Re1+ {[%clk 0:00:50]} 28. Kg2 {[%clk
0:01:30.7]} 28... Re4 {[%clk 0:00:47.1]} 29. axb5 {[%clk 0:01:25]} 29... axb5
{[%clk 0:00:47]} 30. Qxd5 {[%clk 0:01:23.1]} 30... Qxd5 {[%clk 0:00:46.5]} 31.
Rxd5 {[%clk 0:01:23.5]} 31... b4 {[%clk 0:00:46.7]} 32. Rb5 {[%clk 0:01:22.9]}
32... Rc4 {[%clk 0:00:47.3]} 33. Rb7 {[%clk 0:01:18.3]} 33... g6 {[%clk
0:00:44.2]} 34. g4 {[%clk 0:01:12.8]} 34... Kg7 {[%clk 0:00:44]} 35. Kg3 {[%clk
0:01:10.7]} 35... Kf6 {[%clk 0:00:44.3]} 36. h4 {[%clk 0:01:06.7]} 36... Ke6
{[%clk 0:00:41.7]} 37. f3 {[%clk 0:01:04.6]} 37... Rd4 {[%clk 0:00:38.8]} 38.
Kf2 {[%clk 0:00:59.6]} 38... h5 {[%clk 0:00:31.3]} 39. Kg3 {[%clk 0:00:57.1]}
39... hxg4 {[%clk 0:00:31.1]} 40. fxg4 {[%clk 0:00:58]} 40... Rd3+ {[%clk
0:00:30.6]} 41. Kf4 {[%clk 0:00:57.3]} 41... Rd4+ {[%clk 0:00:28.8]} 42. Kf3
{[%clk 0:00:49.7]} 42... Rc4 {[%clk 0:00:28.9]} 43. Kg3 {[%clk 0:00:47.3]} 43...
f6 {[%clk 0:00:24.4]} 44. h5 {[%clk 0:00:45.4]} 44... gxh5 {[%clk 0:00:24.6]}
45. gxh5 {[%clk 0:00:45.8]} 45... Kf5 {[%clk 0:00:18.2]} 46. h6 {[%clk
0:00:45.6]} 46... Kg6 {[%clk 0:00:18.6]} 47. h7 {[%clk 0:00:46.1]} 47... Rc8
{[%clk 0:00:19]} 48. Rxb4 {[%clk 0:00:44.5]} 48... Kxh7 {[%clk 0:00:19.1]} 49.
Kf4 {[%clk 0:00:43.6]} 49... Kg6 {[%clk 0:00:18.6]} 50. Rb1 {[%clk 0:00:43.5]}
50... Rc4+ {[%clk 0:00:18.8]} 51. Kf3 {[%clk 0:00:41.6]} 51... Kg5 {[%clk
0:00:19.1]} 52. Rb5+ {[%clk 0:00:39.9]} 52... f5 {[%clk 0:00:19.4]} 53. Rb8
{[%clk 0:00:33.6]} 53... Rc3+ {[%clk 0:00:19.6]} 54. Kf2 {[%clk 0:00:32.9]}
54... Kg4 {[%clk 0:00:20]} 55. Rg8+ {[%clk 0:00:31.8]} 55... Kf4 {[%clk
0:00:20.1]} 56. Rf8 {[%clk 0:00:32.5]} 56... Rc2+ {[%clk 0:00:20.3]} 57. Kf1
{[%clk 0:00:30.9]} 57... Kg4 {[%clk 0:00:20.7]} 58. Kg1 {[%clk 0:00:26.9]} 58...
f4 {[%clk 0:00:20.3]} 59. Kf1 {[%clk 0:00:26.2]} 59... Kf3 {[%clk 0:00:20.5]}
60. Kg1 {[%clk 0:00:26.3]} 60... Rc1+ {[%clk 0:00:20.9]} 61. Kh2 {[%clk
0:00:26.6]} 61... Ke3 {[%clk 0:00:19.3]} 62. Kg2 {[%clk 0:00:26.5]} 62... Rc2+
{[%clk 0:00:19.7]} 63. Kf1 {[%clk 0:00:24.6]} 63... Kf3 {[%clk 0:00:20.1]} 64.
Kg1 {[%clk 0:00:24.9]} 64... Rc1+ {[%clk 0:00:20.8]} 65. Kh2 {[%clk 0:00:24.3]}
65... Rf1 {[%clk 0:00:21.2]} 66. Ra8 {[%clk 0:00:23.6]} 66... Rf2+ {[%clk
0:00:20.1]} 67. Kg1 {[%clk 0:00:23.1]} 67... Re2 {[%clk 0:00:20.5]} 68. Rf8
{[%clk 0:00:19.2]} 68... Rb2 {[%clk 0:00:17]} 69. Rf7 {[%clk 0:00:16.7]} 69...
Kg3 {[%clk 0:00:17.3]} 70. Rg7+ {[%clk 0:00:15.9]} 70... Kf3 {[%clk 0:00:17.8]}
71. Rf7 {[%clk 0:00:15.9]} 71... Ke3 {[%clk 0:00:17.9]} 72. Re7+ {[%clk
0:00:15.5]} 72... Kf3 {[%clk 0:00:18.4]} 73. Rf7 {[%clk 0:00:15.8]} 1/2-1/2

[Event "Early-Titled-Tuesday-Blitz-May-07-2024"]
[Site "Chess.com"]
[Date "2024.05.07"]
[Round "4"]
[White "WiseKing_08"]
[Black "yonaltimur"]
[Result "1-0"]
[WhiteElo "2611"]
[BlackElo "2407"]
[TimeControl "180+1"]
[EndTime "8:43:53 PDT"]
[Termination "WiseKing_08 won by resignation"]

1. e4 {[%clk 0:03:00.9]} 1... c5 {[%clk 0:02:55.1]} 2. Nc3 {[%clk 0:03:00.4]}
2... Nc6 {[%clk 0:02:53.6]} 3. Bb5 {[%clk 0:03:00.2]} 3... Nd4 {[%clk 0:02:54]}
4. Bc4 {[%clk 0:03:00.5]} 4... e6 {[%clk 0:02:54.4]} 5. Nge2 {[%clk 0:03:00.2]}
5... a6 {[%clk 0:02:54.9]} 6. Nxd4 {[%clk 0:03:00.3]} 6... cxd4 {[%clk
0:02:55.6]} 7. Ne2 {[%clk 0:03:01.2]} 7... Bc5 {[%clk 0:02:56.1]} 8. d3 {[%clk
0:02:58.9]} 8... Ne7 {[%clk 0:02:56]} 9. O-O {[%clk 0:02:56.8]} 9... O-O {[%clk
0:02:56.1]} 10. Ng3 {[%clk 0:02:44.5]} 10... b5 {[%clk 0:02:46.4]} 11. Bb3
{[%clk 0:02:44.7]} 11... Kh8 {[%clk 0:02:46.2]} 12. Qh5 {[%clk 0:02:22.4]} 12...
d6 {[%clk 0:02:32.1]} 13. Bg5 {[%clk 0:01:58.2]} 13... f6 {[%clk 0:02:06.4]} 14.
Bd2 {[%clk 0:01:54.6]} 14... Qe8 {[%clk 0:01:55.3]} 15. Qg4 {[%clk 0:01:32.1]}
15... Nc6 {[%clk 0:01:33.6]} 16. f4 {[%clk 0:01:25.7]} 16... a5 {[%clk
0:01:17.5]} 17. a4 {[%clk 0:01:24.2]} 17... b4 {[%clk 0:01:11.4]} 18. Rae1
{[%clk 0:01:06.5]} 18... Ra7 {[%clk 0:01:09.1]} 19. f5 {[%clk 0:00:51.5]} 19...
Ne5 {[%clk 0:00:48.1]} 20. Qh4 {[%clk 0:00:51.9]} 20... exf5 {[%clk 0:00:47.1]}
21. Nxf5 {[%clk 0:00:49.1]} 21... Be6 {[%clk 0:00:44.6]} 22. Bxe6 {[%clk
0:00:42.9]} 22... Qxe6 {[%clk 0:00:45.5]} 23. b3 {[%clk 0:00:38.5]} 23... Bb6
{[%clk 0:00:20.2]} 24. Re2 {[%clk 0:00:24.9]} 24... g6 {[%clk 0:00:18.7]} 25.
Nh6 {[%clk 0:00:13.4]} 25... Kg7 {[%clk 0:00:17.3]} 26. Qg3 {[%clk 0:00:07.7]}
26... Bd8 {[%clk 0:00:16]} 27. Nf5+ {[%clk 0:00:07.6]} 27... Kh8 {[%clk
0:00:16.1]} 28. Nxd4 {[%clk 0:00:07.8]} 28... Bb6 {[%clk 0:00:16]} 29. Be3
{[%clk 0:00:07.4]} 29... Qg4 {[%clk 0:00:15.6]} 30. Nf3 {[%clk 0:00:02.5]} 30...
Nxf3+ {[%clk 0:00:09.7]} 31. Qxf3 {[%clk 0:00:03.1]} 31... Qxf3 {[%clk
0:00:07.9]} 32. Rxf3 {[%clk 0:00:04]} 32... Bxe3+ {[%clk 0:00:07.6]} 33. Rexe3
{[%clk 0:00:04.6]} 33... Rc7 {[%clk 0:00:07.9]} 34. Re2 {[%clk 0:00:05.3]} 34...
Kg7 {[%clk 0:00:07.7]} 35. Kf1 {[%clk 0:00:05.2]} 35... Rfc8 {[%clk 0:00:07.3]}
36. Rff2 {[%clk 0:00:05.8]} 36... Rc5 {[%clk 0:00:06.9]} 37. Ke1 {[%clk
0:00:06.1]} 37... Kf7 {[%clk 0:00:06.8]} 38. Kd1 {[%clk 0:00:06.7]} 38... Ke6
{[%clk 0:00:07.1]} 39. Rf4 {[%clk 0:00:04.4]} 39... Kf7 {[%clk 0:00:04.9]} 40.
Rh4 {[%clk 0:00:04.5]} 40... Kg7 {[%clk 0:00:04.8]} 41. Rf4 {[%clk 0:00:03.8]}
41... d5 {[%clk 0:00:04.5]} 42. exd5 {[%clk 0:00:02.4]} 42... Rxd5 {[%clk
0:00:03.1]} 43. Rc4 {[%clk 0:00:02.4]} 43... Rcd8 {[%clk 0:00:02.4]} 44. Rc7+
{[%clk 0:00:02.2]} 44... R8d7 {[%clk 0:00:02.3]} 45. Rxd7+ {[%clk 0:00:02.5]}
45... Rxd7 {[%clk 0:00:02.4]} 46. Kd2 {[%clk 0:00:03.4]} 46... Kf7 {[%clk
0:00:02.4]} 47. Re4 {[%clk 0:00:03.3]} 47... Rd5 {[%clk 0:00:02.9]} 48. d4
{[%clk 0:00:03]} 48... h5 {[%clk 0:00:03.5]} 49. h4 {[%clk 0:00:02.4]} 49... g5
{[%clk 0:00:03]} 50. g3 {[%clk 0:00:01.9]} 50... Kg6 {[%clk 0:00:02.7]} 51. Kd3
{[%clk 0:00:01.7]} 51... Kf5 {[%clk 0:00:02.3]} 52. Re8 {[%clk 0:00:01.9]} 52...
gxh4 {[%clk 0:00:02.2]} 53. gxh4 {[%clk 0:00:02.8]} 53... Kg4 {[%clk 0:00:02.8]}
54. Rf8 {[%clk 0:00:03.1]} 54... Kxh4 {[%clk 0:00:02.8]} 55. Kc4 {[%clk
0:00:03.8]} 55... Rf5 {[%clk 0:00:02.1]} 56. d5 {[%clk 0:00:03.9]} 56... Kg3
{[%clk 0:00:02.7]} 57. d6 {[%clk 0:00:04]} 57... Rf4+ {[%clk 0:00:03.3]} 58. Kc5
{[%clk 0:00:04]} 58... Rf2 {[%clk 0:00:03.6]} 59. d7 {[%clk 0:00:03.6]} 59...
Rxc2+ {[%clk 0:00:03.8]} 60. Kb6 {[%clk 0:00:03.3]} 60... Rd2 {[%clk 0:00:04.1]}
61. d8=Q {[%clk 0:00:03.5]} 61... Rxd8 {[%clk 0:00:04.3]} 62. Rxd8 {[%clk
0:00:04.4]} 62... h4 {[%clk 0:00:04.7]} 63. Rg8+ {[%clk 0:00:04.2]} 63... Kf2
{[%clk 0:00:04.7]} 64. Rh8 {[%clk 0:00:04.7]} 1-0